fUST/lending_fUST_20250717
["ID","MTS","AMOUNT","RATE_DAILY","PERIOD"]
[372561988,1752683450942,-671.12,0.00021917,2]
[372561989,1752683450951,-460.0,0.00021917,2]
[372561990,1752683450961,-642.42,0.00021917,2]
[372561991,1752683450971,-507.88,0.00021917,2]
[372561992,1752683450980,-460.0,0.00021917,2]
[372561993,1752683450989,-385.98,0.00021917,2]
[372561994,1752683450999,-460.0,0.00021917,2]
[372561995,1752683451008,-460.0,0.00021917,2]
[372561996,1752683451021,-460.0,0.00021917,2]
[372561997,1752683451031,-213.93,0.00021917,2]
[372561998,1752683451040,-460.0,0.00021917,2]
[372561999,1752683451050,-567.17,0.00021917,2]
[372562000,1752683451059,-1119.43,0.00021917,2]
[372562001,1752683451069,-812.21,0.00021917,2]
[372562002,1752683451079,-978.5,0.00021917,2]
[372562003,1752683451089,-918.14,0.00021917,2]
[372562004,1752683451098,-460.0,0.00021917,2]
[372562005,1752683451108,-460.0,0.00021917,2]
[372562006,1752683451118,-460.0,0.00021917,2]
[372562007,1752683451127,-522.52,0.00021917,2]
[372562008,1752683451137,-460.0,0.00021917,2]
[372562009,1752683451147,-460.0,0.00021917,2]
[372562010,1752683451156,-2147.49951982,0.00021969,6]
[372562011,1752683451166,-629.778705,0.00022,7]
[372562012,1752683451176,-629.778705,0.00022,7]
[372562013,1752683451185,-3792.67,0.00022,7]
[372562014,1752683451195,-34487.98,0.00022,2]
[372562015,1752683451204,-4129.0,0.00022,15]
[372562016,1752683451214,-14300.23978458,0.00022,2]
[372562017,1752683451223,-3059.45,0.00022,7]
[372562018,1752683451234,-1650.379535,0.0002205,7]
[372562019,1752683451243,-194.553245,0.0002205,7]
[372562020,1752683451253,-194.553245,0.0002205,7]
[372562021,1752683451265,-1144.525846,0.0002205,7]
[372562022,1752683451275,-1144.525846,0.0002205,7]
[372562023,1752683451285,-500.0,0.00022052,2]
[372562024,1752683451295,-460.0,0.00022094,2]
[372562025,1752683451304,-734.74206615,0.00022159,2]
[372562026,1752683451314,-172.3,0.00022172,5]
[372562027,1752683451323,-2147.49951982,0.00022176,6]
[372562028,1752683451332,-2000.0,0.00022185,2]
[372562029,1752683451342,-209.082087,0.00022191,7]
[372562030,1752683451351,-209.082087,0.00022191,7]
[372562031,1752683451361,-460.0,0.00022191,2]
[372562032,1752683451371,-460.0,0.00022191,2]
[372562033,1752683451381,-596.42,0.00022191,2]
[372562034,1752683451390,-460.0,0.00022191,2]
[372562035,1752683451400,-460.0,0.00022191,2]
[372562036,1752683451410,-7344.43,0.00022191,2]
[372562037,1752683451420,-460.0,0.00022191,2]
[372562038,1752683451429,-460.0,0.00022191,2]
[372562039,1752683451439,-822.73,0.00022191,2]
[372562040,1752683451448,-460.0,0.00022191,2]
[372562041,1752683451458,-460.0,0.00022191,2]
[372562042,1752683451467,-460.0,0.00022191,2]
[372562043,1752683451477,-839.28,0.00022191,2]
[372562044,1752683451486,-519.32,0.00022191,2]
[372562045,1752683451495,-897.77,0.00022191,2]
[372562046,1752683451505,-1351.27,0.00022191,2]
[372562047,1752683451515,-227.08,0.00022191,2]
[372562048,1752683451524,-460.0,0.00022191,2]
[372562049,1752683451534,-472.36,0.00022191,2]
[372562050,1752683451543,-2878.64,0.00022191,2]
[372562051,1752683451553,-460.0,0.00022191,2]
[372562052,1752683451562,-1504.78,0.00022191,2]
[372562053,1752683451572,-460.0,0.00022191,2]
[372562054,1752683451581,-460.0,0.00022191,2]
[372562055,1752683451591,-2641.85,0.00022191,2]
[372562056,1752683451600,-460.0,0.00022191,2]
[372562057,1752683451610,-671.12,0.00022191,2]
[372562058,1752683451619,-460.0,0.00022191,2]
[372562059,1752683451629,-642.42,0.00022191,2]
[372562060,1752683451639,-507.88,0.00022191,2]
[372562061,1752683451648,-460.0,0.00022191,2]
[372562062,1752683451659,-460.0,0.00022191,2]
[372562063,1752683451669,-460.0,0.00022191,2]
[372562064,1752683451678,-188.1,0.00022191,2]
[372562065,1752683451689,-460.0,0.00022191,2]
[372562066,1752683451701,-1119.43,0.00022191,2]
[372562067,1752683451711,-812.21,0.00022191,2]
[372562068,1752683451720,-978.5,0.00022191,2]
[372562069,1752683451730,-918.14,0.00022191,2]
[372562070,1752683451740,-460.0,0.00022191,2]
[372562071,1752683451750,-460.0,0.00022191,2]
[372562072,1752683451759,-483.7,0.00022191,2]
[372562073,1752683451773,-460.0,0.00022191,2]
[372562074,1752683451783,-460.0,0.00022191,2]
[372562075,1752683451794,-19293.48144392,0.000222,2]
[372562076,1752683451808,-500.0,0.00022217,2]
[372562077,1752683451822,-500.0,0.00022217,2]
[372562078,1752683451833,-656.64663739,0.000223,2]
[372562079,1752683451842,-2147.49951982,0.00022383,7]
[372562080,1752683451852,-158.03,0.0002239,4]
[372562081,1752683451862,-159.14,0.0002239,4]
[372562082,1752683451872,-52950.13438887,0.000224,2]
[372562083,1752683451881,-160.0,0.00022458,3]
[372562084,1752683451891,-460.0,0.00022465,2]
[372562085,1752683451901,-460.0,0.00022465,2]
[372562086,1752683451910,-460.0,0.00022465,2]
[372562087,1752683451920,-460.0,0.00022465,2]
[372562088,1752683451930,-7344.43,0.00022465,2]
[372562089,1752683451939,-460.0,0.00022465,2]
[372562090,1752683451948,-460.0,0.00022465,2]
[372562091,1752683451958,-822.73,0.00022465,2]
[372562092,1752683451967,-460.0,0.00022465,2]
[372562093,1752683451976,-460.0,0.00022465,2]
[372562094,1752683451986,-460.0,0.00022465,2]
[372562095,1752683451996,-839.28,0.00022465,2]
[372562096,1752683452005,-519.32,0.00022465,2]
[372562097,1752683452016,-897.77,0.00022465,2]
[372562098,1752683452026,-1351.27,0.00022465,2]
[372562099,1752683452035,-460.0,0.00022465,2]
[372562100,1752683452045,-472.36,0.00022465,2]
[372562101,1752683452054,-2878.64,0.00022465,2]
[372562102,1752683452064,-460.0,0.00022465,2]
[372562103,1752683452073,-1504.78,0.00022465,2]
[372562104,1752683452082,-460.0,0.00022465,2]
[372562105,1752683452092,-460.0,0.00022465,2]
[372562106,1752683452101,-2641.85,0.00022465,2]
[372562107,1752683452111,-460.0,0.00022465,2]
[372562108,1752683452120,-671.12,0.00022465,2]
[372562109,1752683452129,-460.0,0.00022465,2]
[372562110,1752683452138,-642.42,0.00022465,2]
[372562111,1752683452148,-507.88,0.00022465,2]
[372562112,1752683452158,-460.0,0.00022465,2]
[372562113,1752683452168,-310.07,0.00022465,2]
[372562114,1752683452178,-460.0,0.00022465,2]
[372562115,1752683452187,-460.0,0.00022465,2]
[372562116,1752683452197,-1119.43,0.00022465,2]
[372562117,1752683452206,-812.21,0.00022465,2]
[372562118,1752683452216,-978.5,0.00022465,2]
[372562119,1752683452225,-918.14,0.00022465,2]
[372562120,1752683452235,-571.22,0.00022465,2]
[372562121,1752683452245,-460.0,0.00022465,2]
[372562122,1752683452256,-460.0,0.00022465,2]
[372562123,1752683452267,-460.0,0.00022465,2]
[372562124,1752683452277,-854183.15020854,0.0002249,7]
[372562125,1752683452397,-749.8638399,0.0002249,7]
[372562126,1752683452411,-6309.2075714,0.0002249,7]
[372562127,1752683452422,-912.7891722,0.0002249,7]
[372562128,1752683452434,-468.55808915,0.0002249,7]
[372562129,1752683452446,-1827.5229,0.0002249,7]
[372562130,1752683452516,-460.0,0.0002,2]
[372562131,1752683452526,-460.0,0.00020273,2]
[372562132,1752683452535,-460.0,0.00020547,2]
[372562133,1752683452545,-460.0,0.00020821,2]
[372562134,1752683452555,-242.96014719,0.00021095,2]
[372562135,1752683452566,-217.03985281,0.00021095,2]
[372562136,1752683452576,-871.14,0.00021369,2]
[372562137,1752683452587,-412.77307163,0.00021369,2]
[372562138,1752683452597,-871.14,0.00021643,2]
[372562139,1752683452607,-871.14,0.00021917,2]
[372562140,1752683452618,-871.14,0.00022191,2]
[372562141,1752683452629,-93.53163618,0.0002249,7]
[372562142,1752683452673,-562.0749161,0.00022465,2]
[372562143,1752683452811,-254.45860606,0.00018978,2]
[372562144,1752683452822,-336.92244762,0.00018978,2]
[372562145,1752683452982,-459.38381817,0.00018978,2]
[372562146,1752683452993,-307.92734894,0.00018978,2]
[372562155,1752683744828,21662.64657054,0.00018003,2]
[372562156,1752683744854,3237.35342946,0.00018003,2]
[372562168,1752684194615,150.0,0.000185,2]
[372562171,1752684236008,648.541064,0.00018001,2]
[372562203,1752684442134,-155.18898912,0.00018873,2]
[372562204,1752684442154,-155.18898912,0.00018877,2]
[372562205,1752684442175,-839.82109196,0.00018961,2]
[372562216,1752684632415,-300.0,0.00018899,2]
[372562218,1752684632425,-300.0,0.00018899,2]
[372562220,1752684632435,-155.52269534,0.00018899,2]
[372562225,1752684632468,-1044.47730466,0.00018899,2]
[372562227,1752684632478,-600.76269534,0.000189,2]
[372562345,1752684638397,-500.0,0.000189,2]
[372562347,1752684638409,-1368.8422934,0.000189,2]
[372562349,1752684638420,-386.87,0.00018968,3]
[372562351,1752684638430,-193.43,0.00018968,3]
[372562353,1752684638439,-580.32,0.00018968,3]
[372562355,1752684638449,-1640.11983995,0.00018973,2]
[372562357,1752684638458,-430.84389264,0.00018973,2]
[372562359,1752684638469,-500.0,0.00018975,2]
[372562361,1752684638478,-540.98171954,0.00018975,2]
[372562363,1752684638488,-608.40397637,0.00018975,2]
[372562365,1752684638497,-500.0,0.00018975,2]
[372562367,1752684638507,-500.0,0.00018975,2]
[372562369,1752684638516,-500.0,0.00018975,2]
[372562371,1752684638526,-220.600088,0.00018975,2]
[372562373,1752684638536,-500.0,0.00018975,2]
[372562375,1752684638545,-500.0,0.00018975,2]
[372562377,1752684638555,-500.0,0.00018975,2]
[372562379,1752684638564,-500.0,0.00018975,2]
[372562381,1752684638574,-500.0,0.00018975,2]
[372562382,1752684638583,-314.63409045,0.00018975,2]
[372562384,1752684638592,-601.97123419,0.00018975,2]
[372562386,1752684638602,-500.0,0.00018975,2]
[372562388,1752684638611,-500.0,0.00018975,2]
[372562390,1752684638620,-500.0,0.00018975,2]
[372562392,1752684638630,-500.0,0.00018975,2]
[372562394,1752684638639,-500.0,0.00018975,2]
[372562396,1752684638648,-500.0,0.00018975,2]
[372562398,1752684638657,-500.0,0.00018975,2]
[372562400,1752684638666,-500.0,0.00018975,2]
[372562402,1752684638676,-500.0,0.00018975,2]
[372562404,1752684638685,-500.0,0.00018975,2]
[372562406,1752684638694,-500.0,0.00018975,2]
[372562408,1752684638704,-500.0,0.00018975,2]
[372562410,1752684638713,-250.26115411,0.00018975,2]
[372562412,1752684638722,-500.0,0.00018975,2]
[372562414,1752684638731,-1200.0,0.00018976,2]
[372562416,1752684638741,-287.17325248,0.00018977,2]
[372562418,1752684638751,-494.7342765,0.00018977,2]
[372562420,1752684638760,-368641.30777921,0.00018978,2]
[372562422,1752684638769,-500.0,0.00019173,2]
[372562424,1752684638779,-500.0,0.00019173,2]
[372562426,1752684638790,-500.0,0.00019173,2]
[372562428,1752684638799,-500.0,0.00019173,2]
[372562430,1752684638809,-500.0,0.00019173,2]
[372562432,1752684638819,-500.0,0.00019173,2]
[372562434,1752684638828,-500.0,0.00019173,2]
[372562436,1752684638837,-500.0,0.00019173,2]
[372562438,1752684638846,-460.0,0.00019178,2]
[372562439,1752684638856,-460.0,0.00019178,2]
[372562441,1752684638866,-460.0,0.00019178,2]
[372562443,1752684638876,-400.40905759,0.00019178,2]
[372562445,1752684638885,-460.0,0.00019178,2]
[372562447,1752684638895,-500.0,0.00019178,2]
[372562449,1752684638904,-158.990234,0.00019178,2]
[372562451,1752684638914,-450.0,0.00019178,2]
[372562453,1752684638923,-500.0,0.00019178,2]
[372562455,1752684638933,-500.0,0.00019178,2]
[372562457,1752684638942,-405.20822018,0.00019178,2]
[372562459,1752684638951,-460.0,0.00019178,2]
[372562461,1752684638961,-460.0,0.00019178,2]
[372562463,1752684638971,-460.0,0.00019178,2]
[372562465,1752684638980,-460.0,0.00019178,2]
[372562467,1752684638990,-460.0,0.00019178,2]
[372562469,1752684638999,-460.0,0.00019178,2]
[372562471,1752684639008,-410.88321512,0.00019178,2]
[372562473,1752684639021,-457.19089677,0.00019178,2]
[372562475,1752684639030,-460.0,0.00019178,2]
[372562477,1752684639040,-460.0,0.00019178,2]
[372562479,1752684639051,-460.0,0.00019178,2]
[372562481,1752684639062,-460.0,0.00019178,2]
[372562483,1752684639072,-460.0,0.00019178,2]
[372562485,1752684639082,-460.0,0.00019178,2]
[372562487,1752684639091,-460.0,0.00019178,2]
[372562489,1752684639102,-460.0,0.00019178,2]
[372562491,1752684639111,-460.0,0.00019178,2]
[372562493,1752684639120,-460.0,0.00019178,2]
[372562495,1752684639130,-510.35251212,0.00019178,2]
[372562497,1752684639139,-460.0,0.00019178,2]
[372562499,1752684639150,-460.0,0.00019178,2]
[372562501,1752684639159,-460.0,0.00019178,2]
[372562503,1752684639169,-460.0,0.00019178,2]
[372562505,1752684639178,-397.0795714,0.00019178,2]
[372562507,1752684639188,-460.0,0.00019178,2]
[372562509,1752684639197,-460.0,0.00019178,2]
[372562511,1752684639207,-460.0,0.00019178,2]
[372562513,1752684639216,-460.0,0.00019178,2]
[372562515,1752684639225,-460.0,0.00019178,2]
[372562517,1752684639234,-460.0,0.00019178,2]
[372562519,1752684639244,-460.0,0.00019178,2]
[372562521,1752684639252,-460.0,0.00019178,2]
[372562522,1752684639262,-460.0,0.00019178,2]
[372562524,1752684639271,-460.0,0.00019178,2]
[372562526,1752684639281,-460.0,0.00019178,2]
[372562528,1752684639290,-460.0,0.00019178,2]
[372562531,1752684639301,-481.57,0.00019178,2]
[372562532,1752684639310,-460.0,0.00019178,2]
[372562534,1752684639319,-285.3101309,0.00019178,2]
[372562536,1752684639329,-460.0,0.00019178,2]
[372562538,1752684639338,-460.0,0.00019178,2]
[372562540,1752684639347,-460.0,0.00019178,2]
[372562542,1752684639357,-460.0,0.00019178,2]
[372562544,1752684639367,-460.0,0.00019178,2]
[372562546,1752684639376,-460.0,0.00019178,2]
[372562548,1752684639385,-460.0,0.00019178,2]
[372562550,1752684639394,-460.0,0.00019178,2]
[372562552,1752684639404,-460.0,0.00019178,2]
[372562554,1752684639413,-460.0,0.00019178,2]
[372562556,1752684639422,-460.0,0.00019178,2]
[372562558,1752684639431,-460.0,0.00019178,2]
[372562560,1752684639440,-460.0,0.00019178,2]
[372562562,1752684639449,-289.73874723,0.00019178,2]
[372562564,1752684639458,-460.0,0.00019178,2]
[372562566,1752684639468,-460.0,0.00019178,2]
[372562568,1752684639477,-460.0,0.00019178,2]
[372562570,1752684639486,-460.0,0.00019178,2]
[372562572,1752684639495,-460.0,0.00019178,2]
[372562574,1752684639504,-549.66666634,0.00019178,2]
[372562576,1752684639513,-460.0,0.00019178,2]
[372562578,1752684639523,-460.0,0.00019178,2]
[372562580,1752684639531,-696.92,0.00019178,2]
[372562582,1752684639540,-460.0,0.00019178,2]
[372562584,1752684639551,-460.0,0.00019178,2]
[372562586,1752684639563,-460.0,0.00019178,2]
[372562588,1752684639572,-460.0,0.00019178,2]
[372562590,1752684639582,-460.0,0.00019178,2]
[372562592,1752684639591,-460.0,0.00019178,2]
[372562594,1752684639600,-460.0,0.00019178,2]
[372562596,1752684639609,-460.0,0.00019178,2]
[372562598,1752684639619,-460.0,0.00019178,2]
[372562600,1752684639628,-537.21973376,0.00019178,2]
[372562601,1752684639638,-460.0,0.00019178,2]
[372562603,1752684639646,-460.0,0.00019178,2]
[372562605,1752684639655,-460.0,0.00019178,2]
[372562607,1752684639665,-460.0,0.00019178,2]
[372562609,1752684639674,-460.0,0.00019178,2]
[372562611,1752684639683,-460.0,0.00019178,2]
[372562613,1752684639692,-460.0,0.00019178,2]
[372562615,1752684639702,-460.0,0.00019178,2]
[372562617,1752684639711,-460.0,0.00019178,2]
[372562619,1752684639720,-460.0,0.00019178,2]
[372562621,1752684639729,-460.0,0.00019178,2]
[372562623,1752684639739,-460.79701118,0.00019178,2]
[372562625,1752684639747,-460.0,0.00019178,2]
[372562627,1752684639757,-460.0,0.00019178,2]
[372562629,1752684639766,-460.0,0.00019178,2]
[372562631,1752684639776,-460.0,0.00019178,2]
[372562633,1752684639786,-211.56571191,0.00019178,2]
[372562635,1752684639795,-460.0,0.00019178,2]
[372562637,1752684639808,-460.0,0.00019178,2]
[372562639,1752684639818,-460.0,0.00019178,2]
[372562641,1752684639827,-460.0,0.00019178,2]
[372562643,1752684639837,-460.0,0.00019178,2]
[372562645,1752684639846,-460.0,0.00019178,2]
[372562647,1752684639855,-460.0,0.00019178,2]
[372562649,1752684639865,-460.0,0.00019178,2]
[372562650,1752684639874,-460.0,0.00019178,2]
[372562652,1752684639884,-272.13618868,0.00019178,2]
[372562654,1752684639893,-460.0,0.00019178,2]
[372562655,1752684639903,-460.0,0.00019178,2]
[372562656,1752684639913,-460.0,0.00019178,2]
[372562658,1752684639923,-460.0,0.00019178,2]
[372562659,1752684639932,-460.0,0.00019178,2]
[372562660,1752684639941,-460.0,0.00019178,2]
[372562661,1752684639952,-460.0,0.00019178,2]
[372562662,1752684639961,-460.0,0.00019178,2]
[372562663,1752684639970,-460.0,0.00019178,2]
[372562664,1752684639979,-260.16608642,0.00019178,2]
[372562665,1752684639988,-460.0,0.00019178,2]
[372562666,1752684639997,-460.0,0.00019178,2]
[372562667,1752684640007,-460.0,0.00019178,2]
[372562668,1752684640019,-460.0,0.00019178,2]
[372562669,1752684640028,-420.0,0.00019178,2]
[372562671,1752684640038,-460.0,0.00019178,2]
[372562673,1752684640046,-460.0,0.00019178,2]
[372562674,1752684640059,-460.0,0.00019178,2]
[372562675,1752684640067,-460.0,0.00019178,2]
[372562676,1752684640077,-460.0,0.00019178,2]
[372562677,1752684640086,-460.0,0.00019178,2]
[372562678,1752684640096,-460.0,0.00019178,2]
[372562679,1752684640105,-460.0,0.00019178,2]
[372562680,1752684640114,-460.0,0.00019178,2]
[372562681,1752684640123,-460.0,0.00019178,2]
[372562682,1752684640132,-460.0,0.00019178,2]
[372562683,1752684640141,-460.0,0.00019178,2]
[372562684,1752684640151,-460.0,0.00019178,2]
[372562685,1752684640159,-460.0,0.00019178,2]
[372562686,1752684640169,-460.0,0.00019178,2]
[372562687,1752684640178,-508.2040533,0.00019178,2]
[372562688,1752684640187,-460.0,0.00019178,2]
[372562689,1752684640196,-542.69525169,0.00019178,2]
[372562690,1752684640205,-460.0,0.00019178,2]
[372562691,1752684640214,-306.73542061,0.00019178,2]
[372562692,1752684640224,-460.0,0.00019178,2]
[372562693,1752684640233,-460.0,0.00019178,2]
[372562694,1752684640242,-460.0,0.00019178,2]
[372562695,1752684640251,-460.0,0.00019178,2]
[372562696,1752684640260,-460.0,0.00019178,2]
[372562697,1752684640269,-460.0,0.00019178,2]
[372562698,1752684640278,-460.0,0.00019178,2]
[372562699,1752684640287,-460.0,0.00019178,2]
[372562700,1752684640297,-460.0,0.00019178,2]
[372562701,1752684640308,-189.49543788,0.00019178,2]
[372562702,1752684640318,-460.0,0.00019178,2]
[372562703,1752684640327,-577.88751844,0.00019178,2]
[372562704,1752684640337,-460.0,0.00019178,2]
[372562705,1752684640346,-460.0,0.00019178,2]
[372562706,1752684640356,-460.0,0.00019178,2]
[372562707,1752684640365,-460.0,0.00019178,2]
[372562708,1752684640374,-460.0,0.00019178,2]
[372562709,1752684640383,-460.0,0.00019178,2]
[372562710,1752684640393,-460.0,0.00019178,2]
[372562711,1752684640403,-460.0,0.00019178,2]
[372562712,1752684640412,-460.0,0.00019178,2]
[372562713,1752684640422,-460.0,0.00019178,2]
[372562714,1752684640432,-460.0,0.00019178,2]
[372562715,1752684640441,-460.0,0.00019178,2]
[372562716,1752684640451,-460.0,0.00019178,2]
[372562717,1752684640460,-460.0,0.00019178,2]
[372562718,1752684640470,-460.0,0.00019178,2]
[372562719,1752684640479,-460.0,0.00019178,2]
[372562720,1752684640489,-460.0,0.00019178,2]
[372562721,1752684640499,-460.0,0.00019178,2]
[372562722,1752684640510,-460.0,0.00019178,2]
[372562723,1752684640519,-460.0,0.00019178,2]
[372562724,1752684640529,-460.0,0.00019178,2]
[372562725,1752684640539,-460.0,0.00019178,2]
[372562726,1752684640549,-591.57939857,0.00019178,2]
[372562727,1752684640564,-460.0,0.00019178,2]
[372562728,1752684640748,-460.0,0.00019178,2]
[372562729,1752684640758,-460.0,0.00019178,2]
[372562730,1752684640768,-460.0,0.00019178,2]
[372562732,1752684640777,-460.0,0.00019178,2]
[372562734,1752684640786,-460.0,0.00019178,2]
[372562735,1752684640796,-460.0,0.00019178,2]
[372562737,1752684640810,-460.0,0.00019178,2]
[372562738,1752684640820,-460.0,0.00019178,2]
[372562740,1752684640829,-460.0,0.00019178,2]
[372562741,1752684640839,-460.0,0.00019178,2]
[372562743,1752684640848,-460.0,0.00019178,2]
[372562744,1752684640857,-460.0,0.00019178,2]
[372562745,1752684640867,-485.46,0.00019178,2]
[372562746,1752684640876,-460.0,0.00019178,2]
[372562747,1752684640885,-460.0,0.00019178,2]
[372562748,1752684640894,-460.0,0.00019178,2]
[372562749,1752684640904,-460.0,0.00019178,2]
[372562750,1752684640914,-460.0,0.00019178,2]
[372562751,1752684640924,-460.0,0.00019178,2]
[372562752,1752684640934,-460.0,0.00019178,2]
[372562753,1752684640944,-460.0,0.00019178,2]
[372562754,1752684640953,-460.0,0.00019178,2]
[372562755,1752684640962,-460.0,0.00019178,2]
[372562756,1752684640972,-460.0,0.00019178,2]
[372562757,1752684640981,-460.0,0.00019178,2]
[372562758,1752684640991,-460.0,0.00019178,2]
[372562759,1752684641000,-460.0,0.00019178,2]
[372562760,1752684641010,-460.0,0.00019178,2]
[372562761,1752684641020,-460.0,0.00019178,2]
[372562762,1752684641032,-531.44,0.00019178,2]
[372562763,1752684641042,-666.65,0.00019178,2]
[372562764,1752684641053,-1166.82,0.00019178,2]
[372562765,1752684641063,-460.0,0.00019178,2]
[372562766,1752684641072,-460.0,0.00019178,2]
[372562767,1752684641081,-460.0,0.00019178,2]
[372562768,1752684641090,-460.0,0.00019178,2]
[372562769,1752684641100,-460.0,0.00019178,2]
[372562770,1752684641112,-460.0,0.00019178,2]
[372562771,1752684641121,-460.0,0.00019178,2]
[372562772,1752684641131,-460.0,0.00019178,2]
[372562773,1752684641140,-460.0,0.00019178,2]
[372562774,1752684641150,-528.03,0.00019178,2]
[372562775,1752684641160,-508.4,0.00019178,2]
[372562776,1752684641169,-460.0,0.00019178,2]
[372562777,1752684641179,-460.0,0.00019178,2]
[372562778,1752684641188,-460.0,0.00019178,2]
[372562779,1752684641199,-460.0,0.00019178,2]
[372562780,1752684641209,-460.0,0.00019178,2]
[372562781,1752684641218,-460.0,0.00019178,2]
[372562782,1752684641228,-460.0,0.00019178,2]
[372562783,1752684641237,-460.0,0.00019178,2]
[372562784,1752684641247,-762.77,0.00019178,2]
[372562785,1752684641257,-461.66995787,0.00019178,2]
[372562786,1752684641267,-460.0,0.00019178,2]
[372562787,1752684641277,-460.0,0.00019178,2]
[372562788,1752684641286,-460.0,0.00019178,2]
[372562789,1752684641295,-460.0,0.00019178,2]
[372562790,1752684641309,-468.40578629,0.00019178,2]
[372562791,1752684641318,-460.0,0.00019178,2]
[372562792,1752684641328,-460.0,0.00019178,2]
[372562793,1752684641337,-460.0,0.00019178,2]
[372562794,1752684641346,-460.0,0.00019178,2]
[372562795,1752684641355,-460.0,0.00019178,2]
[372562796,1752684641365,-460.0,0.00019178,2]
[372562797,1752684641375,-460.0,0.00019178,2]
[372562798,1752684641385,-460.0,0.00019178,2]
[372562799,1752684641394,-460.0,0.00019178,2]
[372562800,1752684641404,-460.0,0.00019178,2]
[372562801,1752684641413,-460.0,0.00019178,2]
[372562802,1752684641423,-460.0,0.00019178,2]
[372562803,1752684641432,-460.0,0.00019178,2]
[372562804,1752684641442,-460.0,0.00019178,2]
[372562805,1752684641451,-460.0,0.00019178,2]
[372562806,1752684641460,-460.0,0.00019178,2]
[372562807,1752684641470,-460.0,0.00019178,2]
[372562808,1752684641480,-460.0,0.00019178,2]
[372562809,1752684641489,-460.0,0.00019178,2]
[372562810,1752684641499,-460.0,0.00019178,2]
[372562811,1752684641509,-460.0,0.00019178,2]
[372562812,1752684641518,-460.0,0.00019178,2]
[372562813,1752684641527,-460.0,0.00019178,2]
[372562814,1752684641537,-1805.05,0.00019178,2]
[372562815,1752684641546,-460.0,0.00019178,2]
[372562816,1752684641569,-460.0,0.00019178,2]
[372562817,1752684641579,-460.0,0.00019178,2]
[372562818,1752684641589,-460.0,0.00019178,2]
[372562819,1752684641599,-460.0,0.00019178,2]
[372562820,1752684641608,-460.0,0.00019178,2]
[372562821,1752684641618,-657.3,0.00019178,2]
[372562822,1752684641628,-460.0,0.00019178,2]
[372562823,1752684641638,-460.0,0.00019178,2]
[372562824,1752684641647,-460.0,0.00019178,2]
[372562825,1752684641657,-460.0,0.00019178,2]
[372562826,1752684641665,-460.0,0.00019178,2]
[372562827,1752684641674,-460.0,0.00019178,2]
[372562828,1752684641684,-460.0,0.00019178,2]
[372562829,1752684641693,-460.0,0.00019178,2]
[372562830,1752684641703,-460.0,0.00019178,2]
[372562831,1752684641712,-5636.36,0.00019178,2]
[372562832,1752684641722,-460.0,0.00019178,2]
[372562833,1752684641732,-460.0,0.00019178,2]